bitfinex/quotes_SOLUSD_20250814
["timestamp","ask_amount","ask_price","bid_price","bid_amount"]
[1755190490156,69.69233647,193.77,193.69,11.86953397]
[1755190490157,11.86953397,193.75,193.69,11.86953397]
[1755190490545,11.86953397,193.75,193.68,0.71]
[1755190490546,11.86953397,193.74,193.68,12.57953397]
[1755190491240,17.03135712,193.73,193.67,11.86953397]
[1755190491564,11.86953397,193.69,193.64,11.89953397]
[1755190491771,11.86953397,193.71,193.66,11.86953397]
[1755190491938,11.86953397,193.69,193.64,11.89953397]
[1755190492268,12.56953397,193.68,193.64,0.03]
[1755190492450,0.7,193.68,193.64,0.03]
[1755190492648,12.56953397,193.68,193.64,0.03]
[1755190493372,17.73283946,193.68,193.64,0.03]
[1755190493569,11.86953397,193.68,193.64,0.74]
[1755190493777,5.16291958,193.69,193.64,0.74]
[1755190493977,5.16291958,193.69,193.64,12.60953397]
[1755190494350,17.03245355,193.69,193.64,0.74]
[1755190495373,52.309534,193.71,193.65,0.71]
[1755190495374,11.86953397,193.7,193.65,0.71]
[1755190495673,52.30953397,193.71,193.65,12.57953397]
[1755190496957,56.77193335,193.71,193.65,12.57953397]
[1755190497154,44.90239938,193.71,193.65,0.71]
[1755190497360,11.86953397,193.7,193.65,0.71]
[1755190497785,11.86953397,193.69,193.65,0.71]
[1755190498446,5.1629671,193.69,193.65,0.71]
[1755190498772,11.86953397,193.68,193.64,0.03]
[1755190498943,11.86953397,193.66,193.64,0.03]
[1755190499142,11.86953397,193.65,193.64,0.03]
[1755190499665,12.56953397,193.65,193.64,0.03]
[1755190500362,27.67574954,193.65,193.64,0.03]
[1755190500571,32.83970512,193.65,193.64,0.03]
[1755190502341,58.83970512,193.65,193.64,0.03]
[1755190503469,58.83970512,193.65,193.62,0.03]
[1755190503470,41.10621557,193.63,193.62,0.03]
[1755190503674,53.65574954,193.63,193.62,0.03]
[1755190504051,15.10621557,193.62,193.6,0.03]
[1755190504282,67.35574954,193.61,193.6,1e-08]
[1755190504580,72.520772,193.61,193.6,1e-08]
[1755190504740,15.10621557,193.57,193.56,1e-08]
[1755190504946,15.10621557,193.57,193.54,0.03]
[1755190504947,41.10621557,193.55,193.54,1e-08]
[1755190505164,57.11716106,193.55,193.54,1e-08]
[1755190505371,41.10621557,193.51,193.48,0.03]
[1755190505669,93.35574954,193.51,193.48,0.03]
[1755190506246,15.10621557,193.5,193.48,0.03]
[1755190506444,15.10621557,193.48,193.46,0.03]
[1755190506658,32.82397528,193.49,193.44,0.03]
[1755190506659,41.10621557,193.46,193.44,0.03]
[1755190506863,27.65574954,193.46,193.44,0.03]
[1755190507261,41.10621557,193.45,193.44,1e-08]
[1755190507566,15.10621557,193.44,193.42,1e-08]
[1755190507766,41.10621557,193.39,193.33,0.03]
[1755190507970,93.35574954,193.39,193.33,0.03]
[1755190508362,37.86953397,193.39,193.33,0.03]
[1755190508562,11.86953397,193.41,193.38,0.78]
[1755190508764,39.7,193.4,193.38,0.78]
[1755190508965,39.7,193.4,193.38,0.1]
[1755190509174,11.86953397,193.47,193.39,12.54953397]
[1755190509359,15.10621557,193.49,193.39,0.68]
[1755190509360,11.86953397,193.46,193.39,0.68]
[1755190509675,11.86953397,193.44,193.39,0.68]
[1755190509881,11.86953397,193.44,193.4,0.68]
[1755190510363,11.86953397,193.44,193.41,0.68]
[1755190510364,39.7,193.44,193.41,0.68]
[1755190510554,39.7,193.44,193.42,0.68]
[1755190510754,39.7,193.44,193.4,11.86953397]
[1755190510755,39.7,193.44,193.43,0.68]
[1755190510955,39.7,193.44,193.4,12.54953397]
[1755190511279,39.7,193.44,193.41,0.68]
[1755190511573,51.56953397,193.44,193.41,0.68]
[1755190511773,51.56953397,193.44,193.38,17.82068129]
[1755190511974,51.56953397,193.44,193.38,5.95114732]
[1755190512185,51.56953397,193.44,193.39,11.86953397]
[1755190512573,11.86953397,193.43,193.4,0.68]
[1755190512798,11.86953397,193.43,193.38,0.1]
[1755190512972,11.86953397,193.39,193.38,0.1]
[1755190513361,51.56953397,193.4,193.38,0.1]
[1755190514578,39.7,193.4,193.38,0.78]
[1755190515073,51.56953397,193.4,193.38,0.1]
[1755190515662,56.74021698,193.4,193.38,0.1]
[1755190515978,17.04021698,193.4,193.38,0.1]
[1755190516278,51.56953397,193.39,193.33,5.20245052]
[1755190516465,51.56953397,193.39,193.33,17.07198449]
[1755190517070,39.7,193.39,193.33,17.07198449]
[1755190517264,39.7,193.39,193.33,5.20245052]
[1755190517472,39.68,193.39,193.37,11.86953397]
[1755190517789,39.68,193.39,193.36,11.86953397]
[1755190517993,39.68,193.39,193.34,11.86953397]
[1755190518160,39.68,193.39,193.35,12.54953397]
[1755190518475,39.68,193.39,193.36,0.68]
[1755190519081,39.68,193.39,193.36,12.54953397]
[1755190519258,39.68,193.39,193.36,0.68]
[1755190519459,51.54953397,193.39,193.33,5.88235269]
[1755190519672,51.54953397,193.39,193.34,11.86953397]
[1755190519862,39.68,193.4,193.36,11.86953397]
[1755190520060,39.68,193.4,193.37,0.68]
[1755190520276,39.68,193.4,193.38,0.68]
[1755190520498,39.68,193.4,193.39,0.68]
[1755190520677,39.68,193.4,193.38,11.86953397]
[1755190520884,26.0,193.42,193.39,12.54953397]
[1755190521199,11.869534,193.44,193.41,11.86953397]
[1755190521371,39.68,193.5,193.43,11.86953397]
[1755190521572,5.26695124,193.53,193.47,11.86953397]
[1755190521789,77.54953397,193.52,193.46,11.86953397]
[1755190521981,11.86953397,193.5,193.44,12.54953397]
[1755190522181,0.06,193.46,193.44,11.86953397]
[1755190522568,0.06,193.46,193.42,0.68]
[1755190522773,12.54953397,193.45,193.39,12.54953397]
[1755190522970,11.86953397,193.44,193.34,12.93044314]
[1755190523167,11.86953397,193.42,193.36,11.86953397]
[1755190523372,11.86953397,193.41,193.35,12.54953397]
[1755190523876,51.54953397,193.42,193.36,12.54953397]
[1755190524291,56.71975887,193.42,193.36,12.54953397]
[1755190524596,11.86953397,193.41,193.36,0.68]
[1755190525288,44.8502249,193.42,193.37,0.68]
[1755190525464,39.68,193.42,193.38,0.68]
[1755190525660,39.68,193.42,193.35,5.17186567]
[1755190525661,39.68,193.42,193.39,12.54953397]
[1755190525887,39.68,193.42,193.4,12.54953397]
[1755190526070,39.66,193.45,193.41,0.68]
[1755190526465,15.10621557,193.44,193.4,11.86953397]
[1755190526669,11.86953397,193.42,193.37,0.68]
[1755190526893,15.10621557,193.41,193.35,11.86953397]
[1755190527107,39.66,193.42,193.4,11.86953397]
[1755190527395,39.66,193.45,193.41,12.54953397]
[1755190527701,11.86953397,193.44,193.38,12.54953397]
[1755190528297,51.52953397,193.45,193.39,11.86953397]
[1755190528501,39.66,193.45,193.4,11.86953397]
[1755190528677,39.66,193.45,193.42,11.86953397]
[1755190529013,0.06,193.46,193.43,12.54953397]
[1755190529310,0.06,193.46,193.39,5.17083619]
[1755190529311,0.06,193.46,193.44,12.54953397]
[1755190529678,0.06,193.46,193.43,11.86953397]
[1755190529984,0.06,193.46,193.42,11.86953397]
[1755190530720,15.16621557,193.44,193.38,11.86953397]
[1755190530888,12.58953397,193.43,193.34,18.10282404]
[1755190531073,15.16621557,193.44,193.39,11.86953397]
[1755190531410,15.16621557,193.44,193.39,12.54953397]
[1755190531601,15.88621557,193.44,193.39,12.54953397]
[1755190531798,12.58953397,193.43,193.36,0.68]
[1755190531968,51.50953397,193.42,193.36,12.54953397]
[1755190532381,51.50953397,193.42,193.35,11.86953397]
[1755190532382,11.86953397,193.41,193.35,11.86953397]
[1755190532573,17.04016478,193.4,193.34,0.68]
[1755190532774,32.14616599,193.41,193.35,11.86953397]
[1755190533709,11.86953397,193.4,193.34,12.54953397]
[1755190533903,26.0,193.42,193.37,11.86953397]
[1755190534202,5.89003955,193.43,193.34,5.17211364]
[1755190534203,39.64,193.43,193.38,0.68]
[1755190534409,39.64,193.43,193.4,11.86953397]
[1755190534700,12.58953397,193.42,193.36,11.86953397]
[1755190534917,26.97574954,193.4,193.33,0.03]
[1755190535207,0.72,193.41,193.33,17.07202069]
[1755190535375,41.10621557,193.4,193.34,11.86953397]
[1755190535578,39.62,193.39,193.34,11.86953397]
[1755190535896,39.62,193.39,193.35,12.54953397]
[1755190536078,15.10621557,193.41,193.37,11.86953397]
[1755190536268,0.72,193.4,193.34,11.86953397]
[1755190536477,26.0,193.43,193.39,11.86953397]
[1755190536676,26.0,193.43,193.4,0.68]
[1755190536887,26.0,193.43,193.39,11.86953397]
[1755190537109,26.0,193.43,193.38,17.04064598]
[1755190537479,26.0,193.43,193.38,12.54953397]
[1755190537826,37.86953397,193.43,193.38,0.68]
[1755190537979,26.0,193.43,193.38,12.54953397]
[1755190538171,26.0,193.43,193.39,0.68]
[1755190538568,17.03989744,193.41,193.35,11.86953397]
[1755190538800,26.97574954,193.4,193.35,11.86953397]
[1755190539003,15.10621557,193.4,193.36,0.68]
[1755190539208,54.72621557,193.4,193.35,11.86953397]
[1755190539407,12.58953397,193.39,193.33,5.88249036]
[1755190539583,11.86953397,193.36,193.33,0.03]
[1755190540112,37.86953397,193.37,193.33,0.03]
[1755190540613,77.46953397,193.37,193.33,0.03]
[1755190540783,65.6,193.37,193.33,0.71]
[1755190540979,5.22959113,193.44,193.36,11.86953397]
[1755190541288,0.06,193.44,193.41,11.86953397]
[1755190541488,11.86953397,193.42,193.36,11.86953397]
[1755190541721,39.6,193.42,193.33,0.03]
[1755190541882,15.10621557,193.4,193.33,0.03]
[1755190542100,11.86953397,193.37,193.33,0.03]
[1755190542304,12.58953397,193.37,193.33,0.03]
[1755190542510,11.86953397,193.36,193.33,0.03]
[1755190542715,17.0415019,193.35,193.33,0.03]
[1755190542922,67.29574954,193.34,193.33,0.03]
[1755190544421,71.13439225,193.34,193.33,0.03]
[1755190544713,84.81186258,193.34,193.33,0.03]
[1755190544885,72.94232861,193.34,193.33,1e-08]
[1755190545279,72.94232861,193.34,193.31,1e-08]
[1755190545280,84.81186258,193.34,193.31,1e-08]
[1755190545485,26.97574954,193.32,193.31,1e-08]
[1755190545717,15.10621557,193.3,193.28,0.03]
[1755190545897,71.13439225,193.29,193.28,0.03]
[1755190546298,15.10621557,193.28,193.16,11.86953397]
[1755190546487,11.86953397,193.21,193.15,12.54953397]
[1755190546707,39.6,193.21,193.17,17.04632125]
[1755190547125,39.6,193.21,193.18,0.68]
[1755190547319,51.46953397,193.21,193.16,11.86953397]
[1755190547522,12.58953397,193.2,193.13,0.1]
[1755190547802,15.10621557,193.2,193.15,11.86953397]
[1755190548003,26.97574954,193.2,193.15,0.68]
[1755190548229,26.97574954,193.18,193.13,0.1]
[1755190548405,39.6,193.17,193.13,0.1]
[1755190548602,44.77691529,193.17,193.13,0.1]
[1755190548802,57.36644926,193.17,193.13,0.1]
[1755190549035,39.6,193.17,193.15,11.86953397]
[1755190549203,39.6,193.17,193.14,11.86953397]
[1755190549408,39.6,193.17,193.15,0.68]
[1755190549618,39.6,193.17,193.16,12.54953397]
[1755190549806,39.6,193.17,193.16,0.68]
[1755190550007,39.6,193.17,193.13,5.95776336]
[1755190550230,11.86953397,193.16,193.13,0.1]
[1755190550452,40.32,193.17,193.13,0.1]
[1755190550750,57.36640349,193.17,193.13,0.1]
[1755190550903,3.83945249,193.16,193.13,0.1]
[1755190551103,57.36640349,193.17,193.13,0.1]
[1755190551518,45.49686952,193.17,193.13,0.1]
[1755190551836,27.69574954,193.16,193.13,0.1]
[1755190552141,26.97574954,193.14,193.13,0.1]
[1755190552302,5.17686952,193.17,193.13,0.1]
[1755190552508,15.10621557,193.17,193.14,0.68]
[1755190552727,54.68621557,193.17,193.14,12.54953397]
[1755190552922,0.72,193.2,193.14,12.54953397]
[1755190553134,12.93548316,193.27,193.18,11.86953397]
[1755190553408,11.86953397,193.23,193.17,0.68]
[1755190553613,15.10621557,193.21,193.18,11.86953397]
[1755190553841,15.10621557,193.21,193.18,12.54953397]
[1755190554038,0.72,193.3,193.2,11.86953397]
[1755190554246,3.82712735,193.29,193.25,11.86953397]
[1755190554442,26.97574954,193.28,193.21,0.68]
[1755190554738,44.77420376,193.27,193.22,11.86953397]
[1755190555039,11.86953397,193.25,193.19,11.86953397]
[1755190555236,11.86953397,193.24,193.18,12.54953397]
[1755190555440,11.86953397,193.25,193.19,11.86953397]
[1755190555645,11.86953397,193.28,193.22,11.86953397]
[1755190555808,39.58,193.27,193.24,11.86953397]
[1755190556516,39.58,193.3,193.26,11.86953397]
[1755190556741,39.58,193.3,193.26,17.72389388]
[1755190557042,39.58,193.3,193.27,0.68]
[1755190557209,39.58,193.3,193.26,11.86953397]
[1755190557407,44.75333248,193.3,193.25,11.86953397]
[1755190558330,0.72,193.29,193.23,17.04466768]
[1755190558636,39.58,193.3,193.25,11.86953397]
[1755190558833,15.10621557,193.32,193.28,11.86953397]
[1755190559006,15.10621557,193.32,193.21,5.17571554]
[1755190559007,0.06,193.33,193.29,12.54953397]
[1755190559207,0.06,193.33,193.3,11.86953397]
[1755190559537,0.06,193.33,193.3,0.68]
[1755190559706,0.06,193.33,193.28,11.86953397]
[1755190559913,0.06,193.33,193.28,12.54953397]
[1755190560123,0.06,193.33,193.28,11.86953397]
[1755190560322,0.06,193.33,193.32,11.86953397]
[1755190560556,0.06,193.33,193.32,12.57953397]
[1755190560836,0.06,193.33,193.32,17.7523045]
[1755190561747,0.06,193.33,193.32,12.57953397]
[1755190561921,0.06,193.33,193.32,17.7523045]
[1755190564043,0.06,193.33,193.32,0.71]
[1755190564215,0.06,193.33,193.32,11.86953397]
[1755190564421,0.06,193.33,193.32,12.57953397]
[1755190564742,0.06,193.33,193.32,17.7523045]
[1755190570029,0.06,193.33,193.32,5.88277053]
[1755190570236,0.06,193.33,193.32,17.7523045]
[1755190570744,0.06,193.35,193.32,17.7523045]
[1755190570745,0.06,193.35,193.34,26.0]
[1755190570926,0.06,193.35,193.34,37.86953397]
[1755190571131,0.06,193.35,193.34,38.57953397]
[1755190571317,0.06,193.39,193.34,50.44906794]
[1755190571516,0.06,193.39,193.32,72.73091243]
[1755190571517,0.06,193.39,193.35,0.71]
[1755190571719,0.06,193.39,193.36,11.86953397]
[1755190571922,0.71,193.38,193.32,31.88277053]
[1755190572135,0.71,193.38,193.34,11.86953397]
[1755190572721,0.71,193.37,193.33,11.86953397]
[1755190573461,0.06,193.39,193.34,11.86953397]
[1755190573623,0.71,193.38,193.34,11.86953397]
[1755190573825,0.71,193.37,193.33,11.86953397]
[1755190574730,0.71,193.37,193.31,39.52]
[1755190574731,0.71,193.36,193.32,11.86953397]
[1755190574953,0.71,193.36,193.21,4.20860937]
[1755190574954,15.10621557,193.32,193.21,0.03]
[1755190575153,12.57953397,193.31,193.25,11.86953397]
[1755190575456,0.71,193.3,193.25,11.86953397]
[1755190575943,0.71,193.29,193.24,11.86953397]
[1755190576248,0.71,193.28,193.23,5.20511095]
[1755190576559,0.71,193.27,193.23,17.07459381]
[1755190576730,0.71,193.3,193.25,11.86953397]
[1755190576931,11.86953397,193.3,193.23,5.91505984]
[1755190577137,0.71,193.29,193.25,11.86953397]
[1755190577432,15.10621557,193.32,193.27,11.86953397]
[1755190577634,15.10621557,193.32,193.28,11.86953397]
[1755190577935,0.71,193.31,193.28,11.86953397]
[1755190578141,0.71,193.31,193.27,11.86953397]
[1755190578340,0.71,193.3,193.27,11.86953397]
[1755190578534,0.71,193.3,193.25,5.17452924]
[1755190578861,5.1712016,193.38,193.29,11.86953397]
[1755190579159,0.71,193.37,193.34,11.86953397]
[1755190579538,0.71,193.36,193.27,0.71]
[1755190579738,11.86953397,193.34,193.28,11.86953397]
[1755190579951,27.68574954,193.35,193.29,11.86953397]
[1755190580135,0.71,193.35,193.3,11.86953397]
[1755190580462,20.27759756,193.38,193.33,11.86953397]
[1755190580660,37.92953397,193.39,193.33,11.86953397]
[1755190580870,26.06,193.39,193.35,11.86953397]
[1755190581048,0.06,193.37,193.35,11.86953397]
[1755190581367,0.06,193.37,193.36,11.86953397]
[1755190581537,0.77,193.37,193.34,11.86953397]
[1755190581735,0.06,193.37,193.36,11.86953397]
[1755190581956,0.06,193.37,193.36,12.57953397]
[1755190582346,0.06,193.37,193.35,17.04123718]
[1755190582667,0.06,193.37,193.35,11.86953397]
[1755190583039,0.06,193.37,193.36,11.86953397]
[1755190583247,0.06,193.37,193.35,11.86953397]
[1755190583451,0.06,193.37,193.34,11.86953397]
[1755190583650,0.06,193.37,193.3,0.71]
[1755190583968,0.77,193.37,193.33,11.86953397]
[1755190584261,5.17196793,193.35,193.29,44.65353152]
[1755190584563,5.17196793,193.35,193.29,39.48]
[1755190584564,12.57953397,193.34,193.29,39.48]
[1755190584746,12.57953397,193.33,193.27,17.04360419]
[1755190585053,12.57953397,193.33,193.27,11.86953397]
[1755190585360,0.71,193.33,193.28,11.86953397]
[1755190585557,12.57953397,193.32,193.26,11.86953397]
[1755190585747,11.86953397,193.31,193.25,11.86953397]
[1755190586275,17.04283971,193.3,193.24,17.78438114]
[1755190586433,5.88330574,193.3,193.24,5.20484717]
[1755190586760,17.75283971,193.3,193.24,11.89953397]
[1755190587142,17.75283971,193.3,193.24,0.03]
[1755190587348,11.86953397,193.27,193.24,0.03]
[1755190587545,0.71,193.29,193.24,0.03]
[1755190587546,52.97574954,193.25,193.24,0.03]
[1755190587949,53.68574954,193.25,193.24,0.03]
[1755190588131,58.86039378,193.25,193.24,0.03]
[1755190588334,53.68574954,193.25,193.24,0.03]
[1755190588653,58.86039378,193.25,193.24,0.03]
[1755190589173,37.86953397,193.27,193.24,0.03]
[1755190589347,26.0,193.29,193.25,11.86953397]
[1755190589661,26.71,193.3,193.25,11.86953397]
[1755190589867,92.43574954,193.32,193.26,11.86953397]
[1755190590048,11.86953397,193.31,193.25,11.86953397]
[1755190590245,5.88329424,193.31,193.24,0.03]
[1755190590553,17.75282821,193.31,193.25,11.86953397]
[1755190591268,39.46,193.33,193.28,11.86953397]
[1755190591560,39.46,193.33,193.24,5.20476501]
[1755190591738,40.16,193.33,193.25,0.68]
[1755190592139,5.17303812,193.31,193.26,11.86953397]
[1755190592339,5.17303812,193.31,193.25,0.68]
[1755190592551,0.7,193.3,193.24,0.03]
[1755190592769,15.10621557,193.29,193.24,0.03]
[1755190593168,12.56953397,193.28,193.24,0.03]
[1755190593369,26.0,193.31,193.27,11.86953397]
[1755190593664,56.50209223,193.33,193.27,11.86953397]
[1755190593886,70.63255826,193.33,193.28,11.86953397]
[1755190594162,71.33255826,193.33,193.28,11.86953397]
[1755190594546,12.56953397,193.36,193.3,11.86953397]
[1755190594739,0.06,193.37,193.33,11.86953397]
[1755190594952,5.23156953,193.37,193.33,11.86953397]
[1755190595155,26.97574954,193.35,193.29,11.86953397]
[1755190595547,26.97574954,193.35,193.27,5.85404897]
[1755190595774,0.7,193.34,193.29,11.86953397]
[1755190596067,15.10621557,193.35,193.3,11.86953397]
[1755190596265,11.86953397,193.36,193.27,5.85404897]
[1755190596266,0.06,193.37,193.32,11.86953397]
[1755190596474,0.06,193.37,193.33,12.54953397]
[1755190596772,0.7,193.36,193.31,11.86953397]
[1755190597264,12.56953397,193.35,193.27,0.68]
[1755190597469,0.7,193.35,193.3,11.86953397]
[1755190598061,15.10621557,193.31,193.25,0.03]
[1755190598242,55.24621557,193.34,193.25,0.03]
[1755190598243,52.97574954,193.26,193.25,0.03]
[1755190598447,67.09574954,193.26,193.25,0.03]
[1755190598658,41.10621557,193.25,193.24,0.03]
[1755190598949,93.09574954,193.25,193.24,0.03]
[1755190599269,15.10621557,193.23,193.22,0.03]
[1755190599459,27.67574954,193.23,193.22,0.03]
[1755190600056,32.85092937,193.23,193.22,0.03]
[1755190601259,32.85092937,193.23,193.22,1e-08]
[1755190601871,72.27092937,193.23,193.22,1e-08]
[1755190602075,32.85092937,193.23,193.22,1e-08]
[1755190602276,72.29092937,193.23,193.22,1e-08]
[1755190603161,41.10621557,193.2,193.19,0.03]
[1755190603374,93.09574954,193.2,193.19,0.03]
[1755190603980,11.86953397,193.21,193.19,0.03]
[1755190604163,39.42,193.2,193.19,0.03]
[1755190604845,39.42,193.2,193.19,0.71]
[1755190605257,0.7,193.26,193.19,12.57953397]
[1755190605258,39.44,193.24,193.19,12.57953397]
[1755190605480,39.44,193.24,193.2,0.68]
[1755190606351,26.0,193.27,193.22,11.86953397]
[1755190606573,39.44,193.27,193.23,0.68]
[1755190606874,39.44,193.27,193.24,0.68]
[1755190607070,39.44,193.27,193.24,11.86953397]
[1755190607278,11.86953397,193.3,193.26,11.86953397]
[1755190607279,39.44,193.3,193.26,11.86953397]
[1755190607460,39.44,193.3,193.27,0.68]
[1755190608174,39.44,193.3,193.25,11.86953397]
[1755190608347,51.30953397,193.3,193.25,0.68]
[1755190608772,39.44,193.3,193.26,0.68]
[1755190608968,39.44,193.3,193.27,0.68]
[1755190609172,39.44,193.3,193.27,12.54953397]
[1755190609365,39.44,193.3,193.28,0.68]
[1755190609768,39.44,193.3,193.26,5.17434581]
[1755190609973,39.44,193.3,193.26,0.68]
[1755190610175,57.18288525,193.3,193.24,11.86953397]
[1755190610573,39.44,193.3,193.25,11.86953397]
[1755190610775,39.44,193.3,193.26,0.68]
[1755190610956,39.44,193.3,193.27,12.54953397]
[1755190611156,39.42,193.31,193.28,0.68]
[1755190612177,39.42,193.31,193.27,11.86953397]
[1755190612488,39.42,193.31,193.27,0.68]
[1755190612681,39.42,193.31,193.27,12.54953397]
[1755190613063,39.42,193.32,193.28,0.68]
[1755190613361,39.42,193.32,193.29,0.68]
[1755190613561,39.48,193.32,193.3,0.68]
[1755190613857,0.06,193.32,193.29,11.86953397]
[1755190614062,0.06,193.32,193.28,12.54953397]
[1755190614483,0.06,193.32,193.28,11.86953397]
[1755190614662,0.06,193.32,193.31,11.86953397]
[1755190614863,0.06,193.32,193.31,17.72257209]
[1755190615391,0.06,193.32,193.31,12.54953397]
[1755190616683,0.06,193.32,193.28,11.86953397]
[1755190616896,0.06,193.32,193.29,12.54953397]
[1755190617269,0.06,193.32,193.27,31.17388489]
[1755190617270,0.06,193.32,193.28,11.86953397]
[1755190617595,0.06,193.32,193.28,12.54953397]
[1755190618369,0.06,193.32,193.28,17.72318881]
[1755190618567,0.06,193.32,193.28,11.86953397]
[1755190618769,0.7,193.31,193.26,11.86953397]
[1755190619075,17.74260555,193.31,193.25,17.72413334]
[1755190619278,11.86953397,193.31,193.26,11.86953397]
[1755190619685,11.86953397,193.31,193.25,5.85459937]
[1755190619883,17.0426054,193.31,193.25,5.85459937]
[1755190620092,5.87307143,193.31,193.24,17.04436526]
[1755190620290,11.86953397,193.3,193.24,11.86953397]
[1755190620594,11.86953397,193.31,193.25,11.86953397]
[1755190620770,0.06,193.32,193.29,11.86953397]
[1755190621094,39.46,193.32,193.3,11.86953397]
[1755190621468,39.46,193.32,193.29,12.58953397]
[1755190621663,40.16,193.32,193.25,5.17464424]
[1755190621879,39.46,193.32,193.26,0.72]
[1755190622394,0.06,193.32,193.31,11.86953397]
[1755190622578,0.06,193.32,193.31,12.58953397]
[1755190622780,0.06,193.36,193.31,13.10683778]
[1755190622984,0.06,193.36,193.35,11.86953397]
[1755190623190,0.06,193.36,193.35,12.58953397]
[1755190624306,0.06,193.36,193.35,17.7615019]
[1755190624591,0.06,193.36,193.31,5.89297159]
[1755190624771,0.06,193.36,193.34,11.86953397]
[1755190625416,0.06,193.36,193.32,5.8926036]
[1755190625600,0.06,193.36,193.32,11.86953397]
[1755190625900,0.76,193.36,193.31,11.86953397]
[1755190626195,0.7,193.35,193.3,11.86953397]
[1755190626366,39.44,193.36,193.32,11.86953397]
[1755190626570,39.44,193.36,193.29,31.17351583]
[1755190626571,39.44,193.36,193.34,11.86953397]
[1755190626770,0.06,193.36,193.34,11.86953397]
[1755190627191,0.06,193.36,193.33,0.72]
[1755190627394,0.06,193.36,193.33,11.86953397]
[1755190627698,0.06,193.36,193.33,0.72]
[1755190627891,0.06,193.36,193.33,11.86953397]
[1755190628192,0.06,193.36,193.34,11.86953397]
[1755190628577,0.06,193.36,193.33,11.86953397]
[1755190628901,0.06,193.36,193.34,11.86953397]
[1755190629392,0.06,193.36,193.29,26.0]
[1755190629592,0.06,193.36,193.35,12.58953397]
[1755190629795,0.06,193.36,193.35,11.86953397]
[1755190631801,0.06,193.36,193.35,17.0415019]
[1755190632295,0.06,193.36,193.35,17.7615019]
[1755190633673,1e-08,193.36,193.35,29.63103587]
[1755190633870,1e-08,193.36,193.35,43.7615019]
[1755190635600,1e-08,193.36,193.35,17.7615019]
[1755190635784,1e-08,193.36,193.35,17.0415019]
[1755190636180,1e-08,193.36,193.35,17.7615019]
[1755190636581,1e-08,193.36,193.35,43.7615019]
[1755190636792,1e-08,193.36,193.35,55.63103587]
[1755190637109,1e-08,193.37,193.36,11.86953397]
[1755190637405,0.06,193.38,193.36,12.58953397]
[1755190637609,0.06,193.38,193.37,78.44667727]
[1755190637785,0.06,193.38,193.37,83.61811027]
[1755190638383,0.06,193.38,193.37,43.76096697]
[1755190638583,0.06,193.38,193.37,37.86953397]
[1755190638790,0.06,193.38,193.36,39.34]
[1755190639109,0.06,193.38,193.37,11.86953397]
[1755190639799,0.06,193.38,193.37,17.76096697]
[1755190640926,0.06,193.41,193.37,32.86718254]
[1755190641222,0.06,193.43,193.41,11.86953397]
[1755190641400,0.06,193.43,193.41,51.18953397]
[1755190641911,0.06,193.43,193.41,56.35989744]
[1755190642289,0.06,193.43,193.41,57.07989744]
[1755190645418,0.06,193.43,193.41,17.03989744]
[1755190645709,0.06,193.43,193.38,39.32]
[1755190645710,0.76,193.42,193.38,39.32]
[1755190646007,0.7,193.41,193.38,11.86953397]
[1755190646307,0.7,193.4,193.38,11.86953397]
[1755190646513,0.7,193.39,193.36,51.18953397]
[1755190646807,0.7,193.38,193.35,37.89953397]
[1755190647110,0.06,193.42,193.37,11.86953397]
[1755190647288,0.7,193.41,193.39,11.86953397]
[1755190647490,0.06,193.42,193.37,5.17118236]
[1755190647491,0.7,193.4,193.38,11.86953397]
[1755190647696,0.06,193.42,193.39,11.86953397]
[1755190648095,0.76,193.42,193.39,11.86953397]